bitfinex-derivatives/quotes_BTCF0:USTF0_20210705
["timestamp","ask_amount","ask_price","bid_price","bid_amount"]
[1625446267078,11.13291361,34788.0,34783.0,0.29957544]
[1625446267178,11.0612717,34788.0,34783.0,0.29957544]
[1625446267278,3.36610092,34784.0,34783.0,0.29957544]
[1625446267379,5.44990057,34784.0,34783.0,0.29957544]
[1625446267730,5.44990057,34784.0,34783.0,0.30478797]
[1625446268030,5.69047601,34784.0,34783.0,0.24578797]
[1625446268329,5.69047601,34784.0,34783.0,0.30478797]
[1625446270138,6.17210486,34784.0,34783.0,0.30478797]
[1625446271996,5.93152942,34784.0,34783.0,0.60436341]
[1625446272347,5.93152942,34784.0,34783.0,0.54536341]
[1625446272544,4.48896053,34784.0,34783.0,0.6304289]
[1625446274099,4.48896053,34784.0,34783.0,0.54536341]
[1625446274398,4.48896053,34784.0,34783.0,0.63041723]
[1625446275249,4.48896053,34784.0,34783.0,0.54536341]
[1625446275599,4.48896053,34784.0,34783.0,0.63041728]
[1625446276451,2.48756053,34784.0,34783.0,0.63041728]
[1625446276651,2.48756053,34784.0,34783.0,2.07625001]
[1625446277702,2.48756053,34784.0,34783.0,2.10775001]
[1625446278005,2.48756053,34784.0,34783.0,2.34832545]
[1625446278356,0.65966053,34784.0,34783.0,2.34832545]
[1625446279108,0.65966053,34784.0,34783.0,2.40732545]
[1625446279659,0.48162885,34784.0,34783.0,2.40732545]
[1625446281064,0.48214752,34785.0,34783.0,2.40732545]
[1625446281364,1.44612124,34794.0,34784.0,0.00521543]
[1625446281464,1.44612124,34794.0,34785.0,0.059]
[1625446281566,1.44580952,34793.0,34785.0,0.34001]
[1625446281864,1.44580952,34793.0,34786.0,0.5052151]
[1625446281965,1.44580952,34793.0,34786.0,0.5642151]
[1625446282072,1.44580952,34793.0,34792.0,0.72172632]
[1625446282165,1.44580952,34793.0,34792.0,1.09669632]
[1625446282367,1.44886532,34797.0,34792.0,1.09669632]
[1625446282767,1.44816569,34799.0,34794.0,0.08491127]
[1625446282868,1.44816569,34799.0,34794.0,0.14391127]
[1625446283269,1.44816569,34799.0,34795.0,0.06421466]
[1625446283568,0.24057544,34802.0,34795.0,0.06421466]
[1625446283669,1.60908685,34805.0,34795.0,0.12321466]
[1625446283771,1.66808685,34805.0,34796.0,0.00521434]
[1625446283868,1.66808685,34805.0,34796.0,0.06421434]
[1625446283967,1.66808685,34805.0,34796.0,0.12321434]
[1625446284068,1.66808685,34805.0,34804.0,0.3129057]
[1625446284169,1.66808685,34805.0,34804.0,0.6572757]
[1625446284271,0.059,34805.0,34804.0,0.6572757]
[1625446285271,0.059,34805.0,34804.0,0.6887757]
[1625446285623,0.059,34805.0,34804.0,0.7741757]
[1625446285922,1.61018062,34813.0,34804.0,0.7741757]
[1625446286023,1.66918062,34813.0,34804.0,0.7741757]
[1625446286124,1.61018062,34813.0,34811.0,0.51215544]
[1625446286223,1.61018062,34813.0,34811.0,0.57115544]
[1625446286724,1.84929162,34814.0,34811.0,0.51215544]
[1625446286824,0.059,34813.0,34811.0,0.51215544]
[1625446287177,1.84929162,34814.0,34811.0,0.57115544]
[1625446287278,1.60813395,34813.0,34811.0,0.57115544]
[1625446287628,1.84920524,34814.0,34811.0,0.57115544]
[1625446288078,0.24057544,34812.0,34811.0,0.57115544]
[1625446290082,0.24057544,34812.0,34811.0,0.81173088]
[1625446290383,1.84883678,34818.0,34811.0,0.81173088]
[1625446290484,0.29957544,34818.0,34811.0,0.81173088]
[1625446290591,0.059,34818.0,34811.0,0.81173088]
[1625446291386,0.059,34818.0,34811.0,0.84323088]
[1625446291887,1.28727473,34814.0,34811.0,0.84323088]
[1625446291986,1.28727473,34814.0,34811.0,0.78423088]
[1625446292089,1.28727473,34814.0,34813.0,0.24057544]
[1625446293645,1.84942458,34821.0,34813.0,0.24057544]
[1625446293744,1.90842458,34821.0,34813.0,0.24057544]
[1625446294144,1.90842458,34821.0,34820.0,0.48115088]
[1625446294245,0.35857544,34821.0,34820.0,0.77538088]
[1625446294648,0.29957544,34821.0,34820.0,0.77538088]
[1625446294949,1.58642259,34821.0,34820.0,0.43483899]
[1625446295047,1.58642259,34821.0,34820.0,0.29423]
[1625446295550,1.52742259,34821.0,34820.0,0.29423]
[1625446295751,2.97422231,34821.0,34820.0,0.29423]
[1625446296102,3.21479775,34821.0,34820.0,0.29423]
[1625446296960,3.27379775,34821.0,34820.0,0.29423]
[1625446298258,3.21479775,34821.0,34820.0,0.29423]
[1625446298759,2.89377208,34821.0,34820.0,0.29423]
[1625446299358,2.4126212,34821.0,34820.0,0.29423]
[1625446299459,2.4126212,34821.0,34820.0,0.34749]
[1625446299961,2.4126212,34821.0,34820.0,0.40649]
[1625446300162,1.12577405,34821.0,34820.0,1.12821632]
[1625446300513,1.12679014,34822.0,34820.0,1.12821632]
[1625446301016,1.12687274,34823.0,34820.0,1.12821632]
[1625446301116,1.12687274,34823.0,34820.0,1.15971632]
[1625446301519,0.32194186,34821.0,34820.0,1.15971632]
[1625446301820,0.08062233,34821.0,34820.0,1.15971632]
[1625446302520,0.40259505,34821.0,34820.0,1.15971632]
[1625446303320,0.40259505,34821.0,34820.0,1.24581632]
[1625446303472,0.40233482,34822.0,34820.0,1.24581632]
[1625446303572,0.40233482,34822.0,34821.0,0.0849]
[1625446303772,0.40233482,34822.0,34821.0,0.2029]
[1625446303877,0.08056345,34822.0,34821.0,0.2029]
[1625446303973,0.02706345,34822.0,34821.0,0.2029]
[1625446304122,0.02706345,34822.0,34821.0,0.2344]
[1625446304324,0.32213008,34824.0,34821.0,0.2344]
[1625446305526,0.3221511,34825.0,34821.0,0.2344]
[1625446306026,0.32216593,34826.0,34821.0,0.2344]
[1625446306227,0.32216593,34826.0,34825.0,0.48115088]
[1625446306328,0.32216593,34826.0,34825.0,0.59915088]
[1625446306430,0.32222076,34827.0,34825.0,0.59915088]
[1625446306739,0.32222076,34827.0,34825.0,0.63065088]
[1625446306929,0.3223701,34829.0,34825.0,0.63065088]
[1625446308233,0.3223701,34829.0,34828.0,0.24057544]
[1625446308333,0.3223701,34829.0,34828.0,0.64040544]
[1625446309236,0.3222741,34830.0,34828.0,0.64040544]
[1625446310292,0.3222741,34830.0,34828.0,0.67190544]
[1625446310844,0.96855269,34833.0,34828.0,0.67190544]
[1625446310845,0.32299583,34831.0,34828.0,0.67190544]
[1625446311142,0.32310243,34833.0,34829.0,0.0865]
[1625446311240,0.32310243,34833.0,34829.0,0.2045]
[1625446311488,0.24057544,34836.0,34829.0,0.2045]
[1625446311489,0.32279158,34834.0,34829.0,0.2045]
[1625446311588,0.32279158,34834.0,34829.0,0.118]
[1625446311738,0.32279158,34834.0,34829.0,0.1495]
[1625446312242,0.32279158,34834.0,34833.0,0.48115088]
[1625446312341,0.32279158,34834.0,34833.0,0.54015088]
[1625446312443,0.32252226,34835.0,34833.0,0.54015088]
[1625446312545,0.32252226,34835.0,34833.0,0.59915088]
[1625446312645,0.32252226,34835.0,34833.0,0.54015088]
[1625446313398,0.32220714,34834.0,34833.0,0.54015088]
[1625446314047,0.29495,34835.0,34833.0,0.54015088]
[1625446315001,0.29495,34835.0,34833.0,0.48115088]
[1625446315129,0.29495,34835.0,34828.0,0.24057544]
[1625446315304,0.35395,34835.0,34828.0,0.24057544]
[1625446315402,0.32190889,34829.0,34828.0,0.24057544]
[1625446315956,0.96470745,34830.0,34828.0,0.24057544]
[1625446316153,4.2482,34829.0,34828.0,0.24057544]
[1625446316255,4.48877544,34829.0,34828.0,0.24057544]
[1625446316455,5.45305817,34829.0,34828.0,0.24057544]
[1625446316908,4.48877544,34829.0,34828.0,0.24057544]
[1625446318312,0.24057544,34829.0,34828.0,0.24057544]
[1625446318967,0.24057544,34829.0,34828.0,0.29957544]
[1625446319179,0.24057544,34829.0,34828.0,0.35857544]
[1625446320219,0.32214416,34832.0,34828.0,0.35857544]
[1625446320321,0.32214416,34832.0,34831.0,0.24057544]
[1625446320417,0.32214416,34832.0,34831.0,0.35857544]
[1625446320517,0.32214416,34832.0,34831.0,0.29957544]
[1625446320618,0.32214416,34832.0,34831.0,0.24057544]
[1625446321173,0.96655019,34832.0,34831.0,0.24057544]
[1625446321822,0.96682005,34833.0,34831.0,0.24057544]
[1625446322122,0.96682005,34833.0,34831.0,0.29957544]
[1625446322623,0.96650044,34832.0,34831.0,0.29957544]
[1625446324427,0.96675428,34833.0,34831.0,0.29957544]
[1625446324627,0.96675428,34833.0,34831.0,0.52239544]
[1625446325182,0.96675428,34833.0,34831.0,0.46339544]
[1625446325483,0.96690571,34832.0,34831.0,0.46339544]
[1625446326484,2.09501912,34832.0,34831.0,0.46339544]
[1625446327935,2.10749987,34832.0,34831.0,0.46339544]
[1625446328386,3.39736485,34832.0,34831.0,0.46339544]
[1625446328487,3.39736485,34832.0,34831.0,0.24057544]
[1625446328888,3.39736485,34832.0,34828.0,0.24057544]
[1625446329289,0.01248113,34831.0,34828.0,0.24057544]
[1625446329789,0.01248113,34831.0,34829.0,0.00526538]
[1625446329890,1.30122262,34831.0,34829.0,0.00526538]
[1625446330341,0.25305638,34830.0,34828.0,0.24057544]
[1625446330441,2.34861422,34830.0,34828.0,0.24057544]
[1625446330547,2.34861422,34830.0,34828.0,0.23531006]
[1625446330646,2.33613328,34830.0,34828.0,0.23531006]
[1625446330844,2.1074515,34829.0,34828.0,0.23531006]
[1625446331145,2.1074515,34829.0,34828.0,0.29957551]
[1625446331945,2.09497083,34829.0,34828.0,0.29957551]
[1625446332750,2.10745157,34829.0,34828.0,0.29957551]
[1625446334453,2.10745157,34829.0,34828.0,0.24057551]
[1625446334654,2.10745157,34829.0,34828.0,0.29957551]
[1625446334853,2.09497083,34829.0,34828.0,0.29957551]
[1625446334954,2.09497083,34829.0,34828.0,0.24057551]
[1625446335053,2.09497083,34829.0,34828.0,0.29957551]
[1625446335654,2.09497083,34829.0,34828.0,0.24057551]
[1625446336007,3.38478646,34829.0,34828.0,0.24057551]
[1625446336104,3.38478646,34829.0,34828.0,0.29957551]
[1625446336207,3.39726422,34829.0,34828.0,0.29957551]
[1625446336305,3.39726422,34829.0,34828.0,0.35857551]
[1625446336404,3.39726422,34829.0,34828.0,0.65001551]
[1625446336505,3.38478646,34829.0,34828.0,0.65001551]
[1625446337206,2.74076391,34829.0,34828.0,0.65001551]
[1625446337304,2.74076391,34829.0,34828.0,0.59101551]
[1625446337405,2.74076391,34829.0,34828.0,0.65001551]
[1625446337707,1.61271509,34829.0,34828.0,0.65001551]
[1625446338408,0.32382034,34829.0,34828.0,0.65001551]
[1625446338807,0.48572192,34829.0,34828.0,0.65001551]
[1625446339259,0.16190158,34829.0,34828.0,0.65001551]
[1625446340060,0.72624562,34830.0,34828.0,0.65001551]
[1625446340410,0.48643014,34829.0,34828.0,0.65001551]
[1625446340562,0.48643014,34829.0,34828.0,0.64475006]
[1625446340812,0.32423275,34829.0,34828.0,0.64475006]
[1625446341015,0.32423275,34829.0,34828.0,0.65001588]
[1625446341716,0.48651446,34829.0,34828.0,0.65001588]
[1625446341966,0.48651446,34829.0,34828.0,0.68151588]
[1625446342167,0.32423275,34829.0,34828.0,0.68151588]
[1625446342466,0.16223099,34829.0,34828.0,0.92209132]
[1625446342867,0.32458488,34829.0,34828.0,0.92209132]
[1625446343520,0.64900755,34830.0,34828.0,0.92209132]
[1625446344020,0.64900755,34830.0,34829.0,0.06426552]
[1625446344119,0.64900755,34830.0,34829.0,0.12326552]
[1625446345021,0.3251672,34830.0,34829.0,0.12326552]
[1625446345120,0.3251672,34830.0,34829.0,0.15476552]
[1625446345472,0.48784034,34830.0,34829.0,0.15476552]
[1625446346423,0.48784034,34830.0,34829.0,0.44886552]
[1625446346524,0.64979693,34830.0,34829.0,0.44886552]
[1625446347024,0.4881846,34831.0,34829.0,0.53386552]
[1625446347124,0.4881846,34831.0,34830.0,0.0863]
[1625446347225,0.4881846,34831.0,34830.0,0.1453]
[1625446347325,0.4881846,34831.0,34830.0,0.2043]
[1625446347425,0.4881846,34831.0,34830.0,0.20956346]
[1625446347675,0.4881846,34831.0,34830.0,0.24106346]
[1625446347874,0.16278241,34831.0,34830.0,0.24106346]
[1625446348074,0.16278241,34831.0,34830.0,0.15476346]
[1625446348425,0.16278241,34831.0,34830.0,0.32388609]
[1625446348426,0.48842794,34831.0,34830.0,0.32388609]
[1625446348524,0.48842794,34831.0,34830.0,0.56446153]
[1625446349428,0.48842794,34831.0,34830.0,0.3953389]
[1625446350133,0.42942794,34831.0,34830.0,0.3953389]
[1625446350233,0.42942794,34831.0,34830.0,0.3363389]
[1625446350332,0.42942794,34831.0,34830.0,0.3953389]
[1625446350684,0.32564553,34831.0,34830.0,0.3953389]
[1625446350784,0.32564553,34831.0,34830.0,0.4810389]
[1625446351237,0.32564553,34831.0,34830.0,0.81937014]
[1625446352489,0.32564553,34831.0,34830.0,0.73367014]
[1625446353444,0.32564553,34831.0,34830.0,0.81947014]
[1625446353997,0.32564553,34831.0,34830.0,0.73367014]
[1625446355452,0.32564553,34831.0,34830.0,0.72840668]
[1625446355654,0.32564553,34831.0,34830.0,0.73368463]
[1625446356706,0.32624822,34832.0,34830.0,1.07212746]
[1625446357055,0.65233339,34833.0,34831.0,0.33838656]
[1625446357155,0.65233339,34833.0,34831.0,0.45638656]
[1625446357256,0.65233339,34833.0,34831.0,0.46166451]
[1625446357457,0.65233339,34833.0,34832.0,0.005278]
[1625446357558,0.65233339,34833.0,34832.0,0.123278]
[1625446357905,0.97870397,34833.0,34832.0,0.123278]
[1625446358156,0.97870397,34833.0,34832.0,0.154778]
[1625446358657,0.65244732,34833.0,34832.0,0.73385944]
[1625446359460,0.65244732,34833.0,34832.0,0.39535344]
[1625446360013,0.65271758,34834.0,34832.0,0.39535344]
[1625446360362,0.65271758,34834.0,34833.0,0.00527995]
[1625446360463,0.65271758,34834.0,34833.0,0.12327995]
[1625446360563,0.65271758,34834.0,34833.0,0.46183708]
[1625446360963,0.65271758,34834.0,34833.0,0.49333708]
[1625446362865,0.65216554,34835.0,34833.0,0.15477995]
[1625446363316,0.65216554,34835.0,34834.0,0.00527975]
[1625446363416,0.65216554,34835.0,34834.0,0.40281032]
[1625446363517,0.65216554,34835.0,34834.0,0.46181032]
[1625446363818,1.62913478,34835.0,34834.0,0.12327975]
[1625446363919,1.62913478,34835.0,34834.0,0.15477975]
[1625446364072,0.65216554,34835.0,34834.0,0.15477975]
[1625446364470,0.65216554,34835.0,34834.0,0.49325478]
[1625446364721,0.65216554,34835.0,34834.0,0.73383022]
[1625446365222,0.65216554,34835.0,34834.0,0.39535519]
[1625446368532,1.62882222,34835.0,34834.0,0.39535519]
[1625446370085,1.62882222,34835.0,34834.0,0.33635519]
[1625446370184,1.62882222,34835.0,34834.0,0.27735519]
[1625446370386,1.62882222,34835.0,34834.0,0.24585519]
[1625446370687,1.86939766,34835.0,34834.0,0.24585519]
[1625446370840,1.92839766,34835.0,34834.0,0.24585519]
[1625446370936,1.94086185,34835.0,34834.0,0.24585519]
[1625446371189,4.37518406,34835.0,34834.0,0.24585519]
[1625446371289,4.37518406,34835.0,34834.0,0.00527975]
[1625446371588,4.37518406,34835.0,34825.0,0.33842062]
[1625446371691,6.3208671,34835.0,34825.0,0.059]
[1625446371789,6.3208671,34835.0,34833.0,0.00527017]
[1625446371889,0.31203963,34835.0,34833.0,0.00527017]
[1625446371990,0.01247891,34834.0,34833.0,0.00527017]
[1625446372089,0.01247891,34834.0,34826.0,0.0052633]
[1625446372189,4.9146,34827.0,34826.0,0.0052633]
[1625446372290,4.9146,34827.0,34826.0,0.059]
[1625446372291,7.29238587,34827.0,34826.0,0.059]
[1625446372390,7.35138587,34827.0,34824.0,0.01]
[1625446372539,7.35138587,34827.0,34826.0,0.00526378]
[1625446372691,8.64396674,34827.0,34826.0,0.00526378]
[1625446372791,9.36569306,34827.0,34826.0,0.00526378]
[1625446372890,8.71843573,34827.0,34825.0,0.00526381]
[1625446373090,9.36432079,34827.0,34826.0,0.00526393]
[1625446373342,9.36432079,34827.0,34825.0,0.00526395]
[1625446373439,9.36432079,34827.0,34818.0,0.24057544]
[1625446373601,9.42332079,34827.0,34818.0,0.24057544]
[1625446373902,9.42332079,34827.0,34819.0,0.00525743]
[1625446374042,3.22504777,34820.0,34819.0,0.00525743]
[1625446374141,3.59509777,34820.0,34819.0,0.00525743]
[1625446374241,3.58509777,34820.0,34819.0,0.00525743]
[1625446374741,4.06624865,34820.0,34819.0,0.00525743]
[1625446375191,4.00724865,34820.0,34819.0,0.00525743]
[1625446375741,4.00724865,34820.0,34818.0,0.24057544]
[1625446376492,2.09536199,34819.0,34818.0,0.24057544]
[1625446376693,2.15436199,34819.0,34818.0,0.24057544]
[1625446377195,2.15436199,34819.0,34814.0,0.24057544]
[1625446377293,2.15436199,34819.0,34814.0,0.29957544]
[1625446377496,0.32237042,34815.0,34814.0,0.24057544]
[1625446378248,1.1280548,34816.0,34814.0,0.24057544]
[1625446378348,0.48336204,34815.0,34814.0,0.24057544]
[1625446378748,0.72393748,34815.0,34814.0,0.24057544]
[1625446379151,1.36817622,34815.0,34814.0,0.24057544]
[1625446380403,2.33404099,34815.0,34814.0,0.24057544]
[1625446380653,2.33404099,34815.0,34811.0,0.24057544]
[1625446380757,0.24057544,34812.0,34811.0,0.24057544]
[1625446380855,0.47227544,34812.0,34811.0,0.24057544]
[1625446381406,4.51618811,34812.0,34811.0,0.24057544]
[1625446381856,4.19417544,34812.0,34811.0,0.29957544]
[1625446383060,4.19417544,34812.0,34811.0,0.24057544]
[1625446383161,4.19417544,34812.0,34811.0,0.29957544]
[1625446383363,4.19417544,34812.0,34811.0,0.24057544]
[1625446383461,4.19417544,34812.0,34811.0,0.29957544]
[1625446384514,0.47227544,34812.0,34811.0,0.35857544]
[1625446384614,0.24057544,34812.0,34811.0,0.35857544]
[1625446384716,0.32210113,34814.0,34811.0,0.36384049]
[1625446384814,0.32210113,34814.0,34813.0,0.24057544]
[1625446384917,0.32210113,34814.0,34813.0,0.35857544]
[1625446385016,0.32265211,34819.0,34813.0,1.54201201]
[1625446385218,0.32265211,34819.0,34813.0,1.54727666]
[1625446385418,0.80387844,34820.0,34816.0,0.3380858]
[1625446385517,0.80387844,34820.0,34816.0,0.4560858]
[1625446386019,0.80387844,34820.0,34816.0,0.96323521]
[1625446386270,0.81187844,34820.0,34816.0,0.96323521]
[1625446386419,0.3229357,34819.0,34816.0,0.118]
[1625446386770,0.3229357,34819.0,34818.0,0.24057544]
[1625446386872,0.3229357,34819.0,34818.0,0.57995544]
[1625446387322,0.8121317,34820.0,34818.0,0.57995544]
[1625446387423,0.8121317,34820.0,34818.0,0.46195544]
[1625446387521,0.8121317,34820.0,34818.0,0.52095544]
[1625446387621,0.8121317,34820.0,34818.0,0.46195544]
[1625446387822,0.48412163,34819.0,34818.0,0.46195544]
[1625446387925,0.48412163,34819.0,34818.0,0.52095544]
[1625446388122,0.48412163,34819.0,34818.0,0.57995544]
[1625446388723,1.13459261,34820.0,34818.0,0.57995544]
[1625446388724,1.29602613,34820.0,34818.0,0.57995544]
[1625446389074,0.81193324,34820.0,34818.0,0.57995544]
[1625446390330,0.48915088,34820.0,34818.0,0.57995544]
[1625446390780,0.48915088,34820.0,34818.0,0.91805802]
[1625446391032,0.48915088,34820.0,34819.0,0.33809436]
[1625446391130,0.48915088,34820.0,34819.0,0.45609436]
[1625446392083,0.6471653,34825.0,34819.0,0.62511501]
[1625446392282,0.4641653,34825.0,34820.0,0.5]
[1625446392385,0.64844049,34832.0,34825.0,0.059]
[1625446392582,0.64844049,34832.0,34825.0,0.32717]
[1625446392681,0.64844049,34832.0,34827.0,4.8154]
[1625446392783,0.97358381,34837.0,34831.0,0.72172632]
[1625446392882,0.97358381,34837.0,34831.0,0.78072632]
[1625446393183,0.97358381,34837.0,34831.0,0.83972632]
[1625446393283,0.97387,34838.0,34831.0,0.83972632]
[1625446393684,0.97387,34838.0,34832.0,0.00527378]
[1625446393784,0.97387,34838.0,34832.0,0.33313378]
[1625446394183,0.97387,34838.0,34833.0,0.00528869]
[1625446394283,0.97387,34838.0,34833.0,0.06428869]
[1625446394384,0.97387,34838.0,34833.0,0.12328869]
[1625446394683,0.97387,34838.0,34833.0,0.118]
[1625446394783,0.24057544,34838.0,34837.0,0.24057544]
[1625446394885,0.24057544,34838.0,34837.0,0.35857544]
[1625446396289,0.9729565,34840.0,34837.0,0.35857544]
[1625446396792,0.9729565,34840.0,34839.0,0.24057544]
[1625446396891,0.9729565,34840.0,34839.0,0.35857544]
[1625446397441,0.9729565,34840.0,34839.0,0.24057544]
[1625446397841,0.9729565,34840.0,34839.0,0.29957544]
[1625446397944,2.1074899,34840.0,34839.0,0.29957544]
[1625446398042,2.1074899,34840.0,34839.0,0.24057544]
[1625446398293,2.1074899,34840.0,34839.0,0.58385544]
[1625446398393,2.1074899,34840.0,34839.0,0.64285544]
[1625446398794,0.9729565,34840.0,34839.0,0.64285544]
[1625446398894,0.9729565,34840.0,34839.0,0.58385544]
[1625446398994,0.9729565,34840.0,34839.0,0.52485544]
[1625446399094,0.9729565,34840.0,34839.0,0.58385544]
[1625446399195,0.9729565,34840.0,34839.0,0.52485544]
[1625446399297,0.9729565,34840.0,34839.0,0.58385544]
[1625446399494,0.9729565,34840.0,34839.0,0.52485544]
[1625446399646,2.10813996,34840.0,34839.0,0.52485544]
[1625446399898,2.10813996,34840.0,34839.0,0.58385544]
[1625446400349,2.10813996,34840.0,34839.0,0.52485544]
[1625446400452,2.10813996,34840.0,34839.0,0.58385544]
[1625446402603,0.9729565,34840.0,34839.0,0.58385544]
[1625446402904,2.1063201,34840.0,34839.0,0.58385544]
[1625446403208,0.9729565,34840.0,34839.0,0.58385544]
[1625446406866,1.21353194,34840.0,34839.0,0.58385544]
[1625446415641,0.24057544,34840.0,34839.0,0.58385544]
[1625446416241,1.21355715,34840.0,34839.0,0.58385544]
[1625446417141,0.24057544,34840.0,34839.0,0.58385544]
[1625446417693,0.24057544,34840.0,34839.0,0.58913711]
[1625446417794,0.97246197,34841.0,34839.0,0.58913711]
[1625446418244,0.97246197,34841.0,34840.0,0.00528162]
[1625446418343,0.97246197,34841.0,34840.0,0.06428162]
[1625446419397,0.97246197,34841.0,34840.0,0.00528162]
[1625446420352,1.05796197,34841.0,34840.0,0.00528162]
[1625446420451,0.97246197,34841.0,34840.0,0.00528162]
[1625446421053,0.97246197,34841.0,34840.0,0.06428162]
[1625446421354,0.97246197,34841.0,34840.0,0.00528162]
[1625446421556,1.05946197,34841.0,34840.0,0.00528162]
[1625446421655,1.05946197,34841.0,34840.0,0.06428162]
[1625446421908,1.05946197,34841.0,34840.0,0.00528162]
[1625446422009,0.97246197,34841.0,34840.0,0.06428162]
[1625446422107,0.97246197,34841.0,34840.0,0.00528162]
[1625446422309,0.97246197,34841.0,34840.0,0.06428162]
[1625446422559,0.97246197,34841.0,34840.0,0.00528162]
[1625446423414,1.19839197,34841.0,34840.0,0.00528162]
[1625446424717,1.19839197,34841.0,34840.0,0.06428162]
[1625446424817,1.19839197,34841.0,34840.0,0.00528162]
[1625446425218,1.19839197,34841.0,34840.0,0.06428162]
[1625446425870,1.19839197,34841.0,34840.0,0.00528162]
[1625446429126,1.25739197,34841.0,34840.0,0.00528162]
[1625446429329,2.39121661,34841.0,34840.0,0.00528162]
[1625446429882,2.40363802,34841.0,34840.0,0.00528162]
[1625446430331,2.34463802,34841.0,34840.0,0.00528162]
[1625446430484,2.40363802,34841.0,34840.0,0.00528162]
[1625446433039,2.39121661,34841.0,34840.0,0.00528162]
[1625446435094,2.63179205,34841.0,34840.0,0.00528162]
[1625446435343,2.57279205,34841.0,34840.0,0.00528162]
[1625446435845,3.86963954,34841.0,34840.0,0.00528162]
[1625446438457,3.88201109,34841.0,34840.0,0.00528162]
[1625446440101,3.86963954,34841.0,34840.0,0.00528162]
[1625446440452,3.86963954,34841.0,34840.0,0.06428162]
[1625446442507,3.86963954,34841.0,34840.0,0.00528162]
[1625446450678,5.33836591,34841.0,34840.0,0.00528162]
[1625446452481,5.99126354,34841.0,34840.0,0.00528162]
[1625446452885,5.99126354,34841.0,34840.0,0.68510659]
[1625446453786,5.99126354,34841.0,34840.0,0.92036659]
[1625446455739,4.52253717,34841.0,34840.0,1.94005925]
[1625446460448,4.52253717,34841.0,34840.0,1.97155925]
[1625446461800,4.52253717,34841.0,34840.0,2.03055925]
[1625446471223,4.52253717,34841.0,34840.0,1.97155925]
[1625446477735,3.22568968,34841.0,34840.0,3.16015085]
[1625446478285,3.22568968,34841.0,34840.0,1.97155925]
[1625446478536,2.98511424,34841.0,34840.0,2.03055925]
[1625446478636,2.75918424,34841.0,34840.0,2.08955925]
[1625446478940,2.75918424,34841.0,34840.0,2.09806379]
[1625446479039,2.75918424,34841.0,34840.0,6.30576379]
[1625446479340,2.75918424,34841.0,34840.0,6.54633923]
[1625446479441,2.75918424,34841.0,34840.0,7.73476886]
[1625446479944,0.65410796,34845.0,34840.0,10.61882025]
[1625446480043,0.65410796,34845.0,34840.0,10.70582025]
[1625446480141,0.65410796,34845.0,34840.0,10.61882025]
[1625446480243,0.65410796,34845.0,34841.0,0.02381197]
[1625446480443,0.65457611,34847.0,34844.0,3.05349975]
[1625446480543,0.65457611,34847.0,34844.0,4.29997187]
[1625446480642,0.65457611,34847.0,34845.0,0.059]
[1625446480742,0.65457611,34847.0,34845.0,0.13181019]
[1625446480993,0.65488345,34849.0,34846.0,4.25444777]
[1625446481094,0.65488345,34849.0,34846.0,4.37244777]
[1625446481296,0.65488345,34849.0,34848.0,0.72172632]
[1625446481394,0.65488345,34849.0,34848.0,1.13955632]
[1625446481496,0.65488345,34849.0,34848.0,5.38006728]
[1625446481593,0.65488345,34849.0,34848.0,5.38537494]
[1625446482044,0.65507895,34852.0,34848.0,5.38537494]
[1625446482344,0.65507895,34852.0,34849.0,0.0053075]
[1625446482447,0.65507895,34852.0,34849.0,0.0643075]
[1625446482546,0.65507895,34852.0,34849.0,0.1233075]
[1625446482895,0.65507895,34852.0,34850.0,0.00530712]
[1625446482996,0.65507895,34852.0,34850.0,0.06430712]
[1625446483098,0.65507895,34852.0,34851.0,3.38876169]
[1625446483296,0.65507895,34852.0,34851.0,3.74733713]
[1625446483396,0.65507895,34852.0,34851.0,3.75264414]
[1625446483495,1.14723198,34852.0,34851.0,3.75264414]
[1625446483897,1.14723198,34852.0,34851.0,8.48794414]
[1625446484000,0.49215303,34852.0,34851.0,8.48794414]
[1625446484398,0.08208106,34852.0,34851.0,8.48794414]
[1625446484849,0.08208106,34852.0,34851.0,8.51944414]
[1625446485350,0.08208106,34852.0,34851.0,3.78414414]
[1625446485451,0.0821128,34853.0,34851.0,3.78414414]
[1625446485801,0.0821128,34853.0,34852.0,0.00530676]
[1625446485903,0.0821128,34853.0,34852.0,0.12330676]
[1625446486003,0.0821128,34853.0,34852.0,3.50869945]
[1625446486504,0.0821128,34853.0,34852.0,2.32381201]
[1625446487003,0.49132395,34853.0,34852.0,1.3396942]
[1625446487453,1.14641084,34854.0,34852.0,1.3396942]
[1625446487754,0.08199974,34853.0,34852.0,1.3396942]
[1625446487953,0.08199974,34853.0,34852.0,1.33438744]
[1625446488257,0.08199974,34853.0,34852.0,1.33969524]
[1625446488806,0.08199874,34854.0,34852.0,1.33969524]
[1625446489157,0.08199874,34854.0,34853.0,1.18335667]
[1625446489257,0.08199874,34854.0,34853.0,1.24766414]
[1625446489358,0.08199874,34854.0,34853.0,1.54723958]
[1625446489758,0.08197249,34855.0,34853.0,0.87103577]
[1625446490057,0.08197249,34855.0,34854.0,0.00530752]
[1625446490158,0.08197249,34855.0,34854.0,0.14879815]
[1625446490359,0.08197249,34855.0,34854.0,0.20779815]
[1625446490709,0.08197249,34855.0,34854.0,0.12330752]
[1625446490710,2.12587389,34855.0,34854.0,0.12330752]
[1625446490811,2.12587389,34855.0,34854.0,4.57910752]
[1625446491310,2.12587389,34855.0,34854.0,0.12330752]
[1625446491409,1.14476421,34855.0,34854.0,0.12330752]
[1625446492209,0.08195325,34855.0,34854.0,0.23927978]
[1625446492510,0.49074903,34855.0,34854.0,0.15480752]
[1625446492810,1.1450165,34855.0,34854.0,0.15480752]
[1625446493214,0.49074903,34855.0,34854.0,0.15480752]
[1625446494968,0.0819322,34855.0,34854.0,0.15480752]
[1625446495920,1.05456638,34856.0,34854.0,0.23924107]
[1625446496170,1.05456638,34856.0,34855.0,0.00526812]
[1625446496269,1.05456638,34856.0,34855.0,0.43629812]
[1625446496372,0.9728,34856.0,34855.0,0.43629812]
[1625446496821,0.48978225,34857.0,34855.0,0.46779812]
[1625446497022,0.08176125,34856.0,34855.0,0.46779812]
[1625446497227,0.08176125,34856.0,34855.0,0.46253]
[1625446497577,0.08176125,34856.0,34855.0,0.46779822]
[1625446501500,0.08176125,34856.0,34855.0,5.35837366]
[1625446501689,0.08189132,34860.0,34855.0,7.55292666]
[1625446501993,0.08189132,34860.0,34855.0,2.90292666]
[1625446502086,0.24551537,34861.0,34859.0,0.08440393]
[1625446502185,0.24551537,34861.0,34859.0,0.20240393]
[1625446502486,0.24564358,34862.0,34859.0,0.37120606]
[1625446502590,0.24564358,34862.0,34860.0,0.00526747]
[1625446502788,0.24564358,34862.0,34860.0,0.12326747]
[1625446502888,0.24564358,34862.0,34860.0,0.37646984]
[1625446502987,0.24564358,34862.0,34860.0,0.37120237]
[1625446503087,0.24564358,34862.0,34861.0,0.00526723]
[1625446503187,0.24564358,34862.0,34861.0,0.06426723]
[1625446503287,0.24564358,34862.0,34861.0,0.12326723]
[1625446503388,0.24620358,34864.0,34861.0,0.29206362]
[1625446503487,0.24620358,34864.0,34863.0,0.72172632]